bitfinex-derivatives/quotes_SOLF0:USTF0_20250823
["timestamp","ask_amount","ask_price","bid_price","bid_amount"]
[1755950062055,2.69,202.39,202.38,6.57944196]
[1755950064249,4.9429,202.38,202.33,2.84]
[1755950064455,2.69,202.37,202.34,10.98601236]
[1755950064652,2.69,202.36,202.35,6.58082244]
[1755950064857,7.6334,202.36,202.29,2.84]
[1755950065061,7.6334,202.36,202.3,10.98835356]
[1755950065264,7.6334,202.36,202.32,2.84]
[1755950065456,7.6334,202.36,202.33,6.58249296]
[1755950065653,7.6334,202.36,202.34,6.58249296]
[1755950065958,2.69,202.36,202.33,2.84]
[1755950066157,4.9429,202.38,202.34,6.5826244]
[1755950066358,2.69,202.35,202.27,2.84]
[1755950066657,2.69,202.35,202.29,2.84]
[1755950066854,2.69,202.35,202.31,2.84]
[1755950067048,2.69,202.35,202.32,10.98912592]
[1755950067249,2.69,202.35,202.33,6.58295]
[1755950067449,2.69,202.35,202.34,6.58295]
[1755950068259,7.6335,202.35,202.34,6.58295]
[1755950068454,7.6335,202.35,202.31,2.84]
[1755950068657,123.19,202.39,202.32,13.82967571]
[1755950068958,123.19,202.39,202.33,6.5832412]
[1755950069157,4.9431,202.37,202.34,4.74674897]
[1755950069365,2.69,202.36,202.33,2.84]
[1755950069564,2.69,202.36,202.34,4.74662084]
[1755950069761,2.69,202.36,202.33,2.84]
[1755950069955,2.69,202.35,202.29,2.84]
[1755950070156,145.213,202.39,202.3,10.98958069]
[1755950070157,2.69,202.38,202.3,10.98958069]
[1755950070360,2.69,202.38,202.31,10.98958069]
[1755950070565,4.9441,202.33,202.32,6.58316956]
[1755950070761,24.7152,202.37,202.26,2.84]
[1755950070961,2.69,202.36,202.27,10.98940788]
[1755950071263,2.69,202.36,202.26,2.84]
[1755950071264,2.69,202.36,202.28,10.98940788]
[1755950071465,27.4072,202.36,202.29,6.58313388]
[1755950071766,2.69,202.34,202.3,4.74663823]
[1755950072063,120.62,202.33,202.26,2.84]
[1755950072365,120.62,202.33,202.27,10.9871912]
[1755950072561,2.69,202.32,202.28,10.9871912]
[1755950072765,2.69,202.32,202.29,13.8271912]
[1755950073065,2.69,202.32,202.3,6.58199443]
[1755950073360,120.62,202.33,202.25,2.61]
[1755950073562,125.5641,202.33,202.27,2.61]
[1755950073766,128.2841,202.33,202.29,2.61]
[1755950073967,128.2841,202.33,202.3,6.57834252]
[1755950074163,128.2841,202.33,202.31,6.57834252]
[1755950074365,128.2841,202.33,202.32,4.74195899]
[1755950074568,4.9444,202.32,202.25,2.61]
[1755950074867,123.34,202.33,202.26,10.97937624]
[1755950075068,123.34,202.33,202.27,10.97937624]
[1755950075370,2.72,202.32,202.28,10.9794495]
[1755950075571,2.72,202.3,202.29,6.57711443]
[1755950075762,2.72,202.32,202.29,6.57711443]
[1755950075966,2.72,202.32,202.3,4.74121751]
[1755950076169,2.72,202.32,202.28,2.61]
[1755950076364,2.72,202.32,202.29,13.5849258]
[1755950076570,2.72,202.32,202.3,6.57463777]
[1755950076771,2.72,202.32,202.31,6.57463777]
[1755950076968,120.62,202.33,202.31,6.57463777]
[1755950077167,2.72,202.32,202.29,2.61]
[1755950077372,2.72,202.32,202.3,6.57343008]
[1755950077571,2.72,202.32,202.31,4.73965071]
[1755950077874,2.72,202.32,202.31,6.57300928]
[1755950078074,125.564,202.33,202.31,9.18300928]
[1755950078277,125.564,202.33,202.31,2.61]
[1755950080573,128.284,202.33,202.31,2.61]
[1755950080781,125.564,202.33,202.26,2.61]
[1755950080980,125.564,202.33,202.27,10.96260931]
[1755950081179,128.284,202.33,202.29,2.61]
[1755950081481,4.9443,202.32,202.3,6.57134401]
[1755950081683,4.9443,202.32,202.31,6.57134401]
[1755950082274,120.62,202.33,202.27,2.61]
[1755950082480,120.62,202.33,202.29,2.61]
[1755950082671,120.62,202.33,202.31,2.61]
[1755950082874,120.62,202.33,202.29,2.61]
[1755950083078,120.62,202.33,202.3,13.57088818]
[1755950083274,120.62,202.33,202.31,9.18029632]
[1755950083474,120.74,202.36,202.32,4.73696846]
[1755950083669,2.72,202.35,202.31,2.61]
[1755950083876,4.9439,202.34,202.32,4.73696846]
[1755950084079,4.9439,202.34,202.32,2.61]
[1755950084977,4.9441,202.33,202.27,2.61]
[1755950085178,2.72,202.34,202.29,2.61]
[1755950085374,4.9443,202.32,202.3,10.95904942]
[1755950085570,7.6643,202.32,202.31,6.56943]
[1755950085774,2.72,202.32,202.26,2.61]
[1755950085974,2.72,202.31,202.27,10.96123031]
[1755950086171,2.72,202.3,202.28,4.73783168]
[1755950086376,2.72,202.3,202.24,2.61]
[1755950086572,4.945,202.29,202.26,2.61]
[1755950086774,7.665,202.29,202.27,10.95992814]
[1755950087079,7.665,202.29,202.28,4.73737035]
[1755950087279,7.665,202.29,202.26,2.61]
[1755950087489,2.72,202.28,202.27,10.95805926]
[1755950087781,7.6653,202.28,202.27,4.73659594]
[1755950088386,7.6653,202.28,202.22,2.61]
[1755950088581,7.6653,202.28,202.24,2.61]
[1755950088780,7.6653,202.28,202.25,13.56627617]
[1755950088982,7.6653,202.28,202.26,10.95627617]
[1755950089182,7.6653,202.28,202.27,4.73567848]
[1755950090082,2.72,202.28,202.27,4.73567848]
[1755950090282,2.72,202.29,202.27,4.73567848]
[1755950090583,2.72,202.29,202.26,2.61]
[1755950090784,2.72,202.29,202.27,4.72460495]
[1755950091084,2.72,202.29,202.26,2.61]
[1755950092279,2.72,202.29,202.27,6.55514138]
[1755950092474,4.9453,202.28,202.26,2.61]
[1755950092679,4.9453,202.28,202.27,6.5547397]
[1755950093883,4.9453,202.28,202.27,6.55393117]
[1755950094580,7.6653,202.28,202.27,6.55393117]
[1755950094783,4.9457,202.26,202.19,2.61]
[1755950094984,4.9457,202.26,202.2,10.93930778]
[1755950095278,7.6657,202.26,202.22,2.61]
[1755950095478,2.72,202.25,202.23,10.93930778]
[1755950095683,2.72,202.25,202.24,10.93930778]
[1755950096187,2.72,202.25,202.24,6.55366582]
[1755950096486,4.9457,202.26,202.24,10.93871585]
[1755950096686,4.9457,202.26,202.25,6.55366582]
[1755950096882,7.6657,202.26,202.25,6.55366582]
[1755950098385,7.6657,202.26,202.25,4.72259589]
[1755950100190,4.9457,202.26,202.25,4.72259589]
[1755950100390,4.9457,202.26,202.25,6.55353109]
[1755950100582,4.9457,202.26,202.25,156.55353109]
[1755950102387,4.9457,202.26,202.25,156.55459724]
[1755950102586,4.9457,202.26,202.25,150.0]
[1755950104691,7.5257,202.26,202.25,150.0]
[1755950108490,4.9471,202.2,202.19,2.63]
[1755950108688,4.9471,202.2,202.19,4.72770588]
[1755950108894,4.9471,202.2,202.17,2.63]
[1755950109094,4.9471,202.2,202.18,7.35817614]
[1755950109295,4.9471,202.2,202.18,2.63]
[1755950109488,4.9476,202.19,202.13,120.9]
[1755950109696,4.9476,202.19,202.14,10.94991344]
[1755950109897,4.9476,202.19,202.18,2.63]
[1755950110293,123.48,202.23,202.07,6.27599967]
[1755950110294,2.58,202.18,202.1,2.63]
[1755950110495,2.58,202.18,202.12,2.63]
[1755950110689,2.58,202.18,202.14,2.63]
[1755950110893,2.58,202.17,202.14,2.63]
[1755950112098,2.58,202.16,202.1,2.63]
[1755950112300,2.58,202.16,202.12,2.63]
[1755950112499,2.58,202.15,202.12,2.63]
[1755950113000,4.949,202.13,202.05,2.63]
[1755950113200,4.949,202.13,202.07,2.63]
[1755950113400,4.949,202.13,202.08,10.95983395]
[1755950113600,4.949,202.13,202.09,10.95983395]
[1755950113800,4.949,202.13,202.1,4.72041745]
[1755950113992,4.949,202.13,202.1,2.63]
[1755950114197,121.0,202.17,202.11,2.63]
[1755950114405,2.58,202.14,202.11,2.63]
[1755950114593,7.5288,202.14,202.11,2.63]
[1755950114901,123.58,202.17,202.11,2.63]
[1755950115296,4.9486,202.15,202.11,2.63]
[1755950115497,4.9486,202.15,202.12,2.63]
[1755950115807,123.58,202.17,202.14,2.63]
[1755950116000,121.0,202.17,202.06,2.63]
[1755950116303,121.0,202.17,202.08,2.63]
[1755950116500,121.0,202.17,202.1,2.63]
[1755950116701,121.0,202.17,202.12,2.63]
[1755950116900,121.0,202.17,202.13,2.63]
[1755950117100,121.0,202.17,202.08,2.63]
[1755950117302,121.0,202.17,202.1,2.63]
[1755950117499,125.9481,202.17,202.11,9.10889134]
[1755950117701,67.29095738,202.22,202.1,2.63]
[1755950118007,67.29095738,202.22,202.08,6.27599967]
[1755950118008,121.3,202.19,202.12,2.63]
[1755950118207,4.9469,202.21,202.14,2.63]
[1755950118503,188.67095738,202.22,202.14,2.63]
[1755950118697,2.58,202.21,202.14,2.63]
[1755950118893,7.5281,202.17,202.14,2.63]
[1755950119094,4.9481,202.17,202.14,2.63]
[1755950120100,7.5274,202.19,202.09,2.63]
[1755950120299,7.5274,202.19,202.08,11.22589967]
[1755950120300,4.9474,202.19,202.11,2.63]
[1755950120602,4.9474,202.19,202.13,2.63]
[1755950120995,4.9478,202.18,202.1,2.63]
[1755950121197,4.9478,202.18,202.11,10.85504207]
[1755950121394,4.9478,202.18,202.12,7.02626928]
[1755950121594,4.9478,202.18,202.12,2.63]
[1755950123396,121.34,202.21,202.14,2.63]
[1755950123605,64.71095738,202.22,202.16,2.63]
[1755950124205,64.71095738,202.22,202.18,2.63]
[1755950124403,64.71095738,202.22,202.15,4.9482]
[1755950124609,64.71095738,202.22,202.2,2.63]
[1755950124901,64.71095738,202.22,202.21,2.63]
[1755950125107,7.5257,202.26,202.22,2.63]
[1755950125308,2.58,202.27,202.18,2.63]
[1755950126509,4.9465,202.23,202.16,6.27599967]
[1755950126811,4.9465,202.23,202.17,10.85766318]
[1755950127006,4.9465,202.23,202.19,2.63]
[1755950127211,4.9465,202.23,202.2,2.63]
[1755950127413,4.9468,202.22,202.2,2.63]
[1755950127908,4.9468,202.22,202.16,2.63]
[1755950128111,7.5268,202.22,202.18,2.63]
[1755950128509,7.5268,202.22,202.19,2.63]
[1755950128910,4.9468,202.22,202.2,2.63]
[1755950129110,7.5262,202.24,202.2,2.63]
[1755950129310,2.58,202.26,202.2,2.63]
[1755950129512,2.58,202.26,202.15,11.22429967]
[1755950129513,2.58,202.26,202.16,2.63]
[1755950129712,2.58,202.26,202.17,10.86776419]
[1755950129914,2.58,202.26,202.16,2.63]
[1755950130215,2.58,202.26,202.17,10.86776419]
[1755950130407,2.58,202.26,202.16,2.63]
[1755950130605,4.9466,202.23,202.17,10.87226813]
[1755950130809,2.58,202.23,202.18,2.63]
[1755950131008,2.58,202.23,202.19,2.63]
[1755950131210,2.58,202.23,202.15,6.27599967]
[1755950131211,2.58,202.23,202.16,2.63]
[1755950131410,2.58,202.23,202.17,10.87385687]
[1755950131607,2.58,202.23,202.2,2.63]
[1755950132706,4.9462,202.24,202.17,2.63]
[1755950132910,4.9465,202.23,202.17,2.63]
[1755950136606,2.83,202.21,202.13,4.9487]
[1755950136810,2.83,202.21,202.14,13.63603249]
[1755950137010,2.83,202.21,202.15,10.88603249]
[1755950137314,2.83,202.21,202.14,2.75]
[1755950137512,4.9473,202.2,202.15,10.88837663]
[1755950137813,7.7773,202.2,202.16,2.75]
[1755950138416,4.9475,202.19,202.12,2.75]
[1755950138619,4.9475,202.19,202.13,10.89198294]
[1755950138817,4.9475,202.19,202.14,10.89198294]
[1755950139017,7.7775,202.19,202.15,2.75]
[1755950140721,7.7778,202.18,202.15,2.75]
[1755950140927,4.9478,202.18,202.11,4.9493]
[1755950141123,2.83,202.17,202.12,10.89177495]
[1755950141323,4.9472,202.2,202.13,10.89177495]
[1755950141620,2.83,202.21,202.15,2.75]
[1755950142328,2.83,202.21,202.16,6.48556373]
[1755950142528,7.777,202.21,202.17,6.48556373]
[1755950142823,2.83,202.21,202.14,2.75]
[1755950143029,2.83,202.21,202.15,10.89690494]
[1755950143217,2.83,202.2,202.16,6.48692122]
[1755950143423,24.7298,202.25,202.17,6.48692122]
[1755950143619,2.83,202.19,202.15,2.75]
[1755950143826,2.83,202.19,202.16,6.48873347]
[1755950144028,2.83,202.19,202.15,2.75]
[1755950144234,2.83,202.19,202.16,6.48910542]
[1755950144425,2.83,202.19,202.15,2.75]
[1755950144725,2.83,202.18,202.16,6.49100244]
[1755950145030,2.83,202.22,202.12,2.75]
[1755950145230,2.83,202.22,202.13,10.90377296]
[1755950145526,2.83,202.22,202.14,6.49108612]
[1755950145721,2.83,202.22,202.15,6.49108612]
[1755950145925,2.83,202.22,202.12,2.75]
[1755950146228,2.83,202.22,202.13,13.65435634]
[1755950146428,2.83,202.22,202.14,6.49140954]
[1755950146623,2.83,202.22,202.15,6.49140954]
[1755950146829,2.83,202.22,202.16,1.83656775]
[1755950147029,4.9475,202.19,202.13,2.75]
[1755950147332,2.83,202.18,202.14,13.65779866]
[1755950147529,2.83,202.18,202.15,6.49348388]
[1755950147727,2.83,202.18,202.14,2.75]
[1755950147927,2.83,202.18,202.15,6.49596001]
[1755950148131,2.83,202.18,202.16,1.83833755]
[1755950148326,2.83,202.18,202.14,2.75]
[1755950148532,7.7778,202.18,202.15,6.4976312]
[1755950148825,7.7778,202.18,202.16,6.4976312]
[1755950149132,2.83,202.17,202.14,2.75]
[1755950149330,2.83,202.17,202.15,6.54262521]
[1755950149531,2.83,202.22,202.09,2.75]
[1755950149730,2.83,202.22,202.1,10.96069841]
[1755950150031,24.7371,202.19,202.11,9.12192563]
[1755950150231,2.83,202.18,202.12,10.96082292]
[1755950150531,24.7371,202.19,202.13,10.96082292]
[1755950150731,2.83,202.16,202.14,6.54275128]
[1755950151031,24.7371,202.19,202.15,6.54275128]
[1755950151229,24.7371,202.19,202.09,2.75]
[1755950151532,2.83,202.18,202.1,10.96181962]
[1755950151727,2.83,202.18,202.11,10.96181962]
[1755950151929,2.83,202.18,202.12,10.96181962]
[1755950152129,2.83,202.17,202.13,10.96181962]
[1755950152431,4.9485,202.15,202.14,6.54328388]
[1755950152626,2.83,202.15,202.09,2.75]
[1755950152831,24.7384,202.18,202.1,13.71371362]
[1755950152832,2.83,202.14,202.1,13.71371362]
[1755950153034,2.83,202.14,202.11,10.96371362]
[1755950153234,2.83,202.14,202.12,10.96371362]
[1755950153428,7.7786,202.14,202.13,6.54444474]
[1755950154032,4.9491,202.12,202.1,2.75]
[1755950154232,4.9491,202.12,202.11,10.96363971]
[1755950154432,7.7791,202.12,202.11,10.96363971]
[1755950154636,4.9491,202.12,202.11,10.96363971]
[1755950154929,4.9491,202.12,202.11,6.54445369]
[1755950155335,7.7791,202.12,202.11,6.54445369]
[1755950157529,4.9501,202.08,202.05,2.75]
[1755950157833,4.9501,202.08,202.06,13.70741793]
[1755950158132,4.9501,202.08,202.07,10.95741793]
[1755950158834,4.9501,202.08,202.07,4.41661099]
[1755950159135,4.9501,202.08,202.07,10.9559668]
[1755950159435,4.9501,202.08,202.07,9.11803216]
[1755950159728,4.9501,202.08,202.07,10.95482835]
[1755950160138,4.9497,202.1,202.07,10.95482835]
[1755950160337,7.7797,202.1,202.08,10.95482835]
[1755950160537,7.7797,202.1,202.09,6.53821736]
[1755950161735,7.7797,202.1,202.0,2.75]
[1755950161736,4.9504,202.07,202.0,2.75]
[1755950162035,4.9504,202.07,202.01,10.95199164]
[1755950162239,4.9504,202.07,202.04,2.75]
[1755950162538,4.9504,202.07,202.05,13.70199164]
[1755950162738,4.9504,202.07,202.06,6.53764311]
[1755950163940,4.9504,202.07,202.06,9.14764311]
[1755950166841,4.9504,202.07,202.06,6.53764311]
[1755950167241,4.9504,202.07,202.06,4.6921067]
[1755950167540,4.9504,202.07,202.0,4.9519]
[1755950167743,4.9504,202.07,202.01,10.93167421]
[1755950167941,4.9504,202.07,202.05,2.61]
[1755950169242,4.9504,202.07,202.06,2.61]
[1755950169434,4.95,202.09,202.06,2.61]
[1755950169632,2.79,202.09,202.06,2.61]
[1755950170639,4.9502,202.08,202.06,2.61]
[1755950173842,7.7402,202.08,202.06,2.61]
[1755950176346,4.9502,202.08,202.06,2.61]
[1755950176945,4.9502,202.08,202.07,2.61]
[1755950177748,4.9502,202.08,202.01,4.9517]
[1755950177946,4.9502,202.08,202.05,2.61]
[1755950178346,7.7402,202.08,202.05,2.61]
[1755950181344,4.9506,202.06,201.98,2.61]
[1755950181543,2.79,202.07,202.0,2.61]
[1755950181745,4.9509,202.05,202.01,10.94071522]
[1755950181949,4.9509,202.05,202.0,2.61]
[1755950181950,4.9509,202.05,202.03,2.61]
[1755950182150,4.9509,202.05,201.99,2.61]
[1755950182444,4.9509,202.05,202.02,2.61]
[1755950182645,4.9509,202.05,202.03,9.14285605]
[1755950182846,4.9509,202.05,202.04,6.53285605]
[1755950183042,4.9513,202.03,201.97,6.18e-05]
[1755950183246,4.9513,202.03,202.0,2.61]
[1755950183450,4.9513,202.03,202.01,13.55272488]
[1755950183751,4.9513,202.03,202.02,10.94272488]
[1755950184252,4.9513,202.03,202.02,13.55272488]
[1755950184650,7.7409,202.05,202.02,13.55272488]
[1755950184856,2.79,202.1,202.03,9.14363775]
[1755950185049,2.79,202.1,202.03,2.61]
[1755950185353,2.79,202.1,202.04,4.6985932]
[1755950185654,2.79,202.1,202.03,2.61]
[1755950185854,2.79,202.1,202.04,4.69859408]
[1755950186050,2.79,202.1,202.03,2.61]
[1755950186254,2.79,202.1,202.04,4.69935075]
[1755950186450,4.951,202.05,202.03,2.61]
[1755950186756,4.951,202.05,202.04,4.69927257]
[1755950187160,4.951,202.05,202.04,6.53634752]
[1755950187360,7.741,202.05,202.04,6.53634752]
[1755950189057,7.741,202.05,202.04,4.69927257]
[1755950189254,4.951,202.05,202.04,6.5373093]
[1755950190355,7.741,202.05,202.04,6.5373093]
[1755950190663,2.79,202.07,202.04,9.1473093]
[1755950190855,2.79,202.06,202.04,2.61]
[1755950191557,7.7407,202.06,202.04,2.61]
[1755950191758,7.7407,202.06,201.97,4.14965748]
[1755950191759,2.79,202.06,201.99,2.61]
[1755950191959,2.79,202.06,202.0,10.96095268]
[1755950192158,2.79,202.06,202.01,9.12194716]
[1755950192463,7.7415,202.03,202.02,10.96133318]
[1755950193269,7.7415,202.03,202.02,6.54466183]
[1755950194266,4.9521,202.0,201.97,6.18e-05]
[1755950194565,4.9521,202.0,201.98,13.65741212]
[1755950194863,7.7821,202.0,201.99,10.96741212]
[1755950195464,7.7821,202.0,201.99,10.9677155]
[1755950196065,7.7821,202.0,201.99,10.96772483]
[1755950196458,120.94,202.04,201.99,10.96772483]
[1755950196660,2.83,202.02,202.0,6.5487614]
[1755950196862,2.83,202.02,202.01,4.70846337]
[1755950197262,2.83,202.02,202.01,6.54914408]
[1755950197462,7.7817,202.02,202.01,6.54914408]
[1755950198064,4.9517,202.02,202.01,4.70846337]
[1755950198460,4.9517,202.02,202.01,6.55023113]
[1755950199471,7.7817,202.02,202.01,6.55023113]
[1755950201770,7.7817,202.02,202.01,6.55031473]
[1755950202075,2.83,202.03,202.01,6.55031473]
[1755950202372,2.83,202.02,201.99,2.69]
[1755950202570,332.92,202.12,202.01,2.69]
[1755950202571,120.86,202.07,202.01,2.69]
[1755950202763,120.86,202.07,202.02,13.64497174]
[1755950202968,4.9515,202.03,201.97,6.18e-05]
[1755950203268,7.7815,202.03,201.99,2.69]
[1755950203470,7.7815,202.03,202.0,13.644579]
[1755950203664,7.7815,202.03,201.97,6.18e-05]
[1755950203665,7.7815,202.03,202.01,9.24040905]
[1755950203872,4.9515,202.03,202.02,6.55035049]
[1755950204080,7.7815,202.03,202.02,4.70966595]
[1755950204677,4.9515,202.03,202.02,7.39966595]
[1755950204974,4.9515,202.03,202.02,7.39991663]
[1755950205276,4.9509,202.05,202.02,7.39991663]
[1755950205472,4.9509,202.05,202.03,2.69]
[1755950206175,4.9509,202.05,201.99,2.69]
[1755950206379,4.9509,202.05,202.0,10.95418327]
[1755950206574,4.9509,202.05,202.01,10.95418327]
[1755950206775,7.7809,202.05,202.02,6.55006133]
[1755950206973,7.7809,202.05,202.03,6.55006133]
[1755950207180,7.7809,202.05,202.01,2.69]
[1755950207374,4.9512,202.04,202.02,9.24054476]
[1755950207576,4.9512,202.04,202.03,6.55054476]
[1755950207877,7.7807,202.06,202.03,9.24054476]
[1755950208175,7.7807,202.06,202.0,2.69]
[1755950208176,2.83,202.06,202.0,2.69]
[1755950208376,120.88,202.07,202.01,10.95196959]
[1755950208577,2.83,202.04,202.02,6.55063373]
[1755950208777,7.781,202.04,202.03,6.55063373]
[1755950209175,7.781,202.04,202.0,2.69]
[1755950209176,4.9523,202.0,201.97,6.18e-05]
[1755950209381,2.83,202.04,201.98,6.55991381]
[1755950209680,120.88,202.07,201.97,6.18e-05]
[1755950209681,2.83,202.02,201.99,4.71879539]
[1755950209880,2.83,202.02,201.97,6.18e-05]
[1755950210076,2.83,202.02,201.98,6.56011721]
[1755950210274,4.9521,202.0,201.98,2.69]
[1755950210470,2.83,202.0,201.97,6.18e-05]
[1755950210675,2.83,202.0,201.98,6.55917297]
[1755950210876,4.9524,201.99,201.97,6.18e-05]
[1755950211076,7.7824,201.99,201.98,6.55917561]
[1755950211273,7.7824,201.99,201.97,6.18e-05]
[1755950211774,4.9524,201.99,201.97,6.18e-05]
[1755950213283,2.83,201.98,201.97,6.18e-05]
[1755950214787,4.9524,201.99,201.97,6.18e-05]
[1755950214788,126.0324,201.99,201.97,6.18e-05]
[1755950214988,4.9524,201.99,201.97,6.18e-05]
[1755950217092,7.7824,201.99,201.97,6.18e-05]
[1755950219696,4.9524,201.99,201.97,6.18e-05]
[1755950219995,7.7824,201.99,201.97,6.18e-05]
[1755950220595,121.1,202.0,201.97,6.18e-05]
[1755950221300,121.1,202.0,201.97,2.6900618]
[1755950222493,121.1,202.0,201.97,6.18e-05]
[1755950222900,121.1,202.0,201.97,2.6900618]
[1755950225597,4.9514,202.03,201.98,4.71095316]
[1755950225798,128.9214,202.03,201.99,9.32827885]
[1755950226102,7.6617,202.02,201.99,2.78]
[1755950226492,2.71,202.01,201.97,6.18e-05]
[1755950226692,2.71,202.01,201.98,6.5495877]
[1755950226894,7.6619,202.01,201.97,2.7800618]
[1755950227098,7.6619,202.01,201.98,6.54996384]
[1755950227299,7.6619,202.01,201.97,2.7800618]
[1755950227495,7.6619,202.01,201.98,6.55073359]
[1755950227796,7.6619,202.01,201.97,2.7800618]
[1755950228000,7.6619,202.01,201.98,6.55073359]
[1755950228201,4.9522,202.0,201.97,2.7800618]
[1755950228397,4.9522,202.0,201.98,6.5510558]
[1755950228699,2.71,201.99,201.97,6.18e-05]
[1755950228903,126.1925,201.98,201.97,6.18e-05]
[1755950229102,126.3525,201.98,201.97,6.18e-05]
[1755950233702,4.9525,201.98,201.97,6.18e-05]
[1755950233904,127.4325,201.98,201.97,6.18e-05]
[1755950237710,4.9539,201.93,201.86,2.78]
[1755950237905,130.6839,201.93,201.87,10.94218524]
[1755950238105,2.71,201.92,201.88,10.94218524]
[1755950238410,7.6645,201.9,201.89,10.94218524]
[1755950239015,123.02,201.93,201.89,10.94218524]
[1755950239216,123.02,201.93,201.9,13.72218524]
[1755950239518,123.02,201.93,201.92,2.78]
[1755950239708,123.02,201.93,201.92,13.72144899]
[1755950239909,128.053,201.96,201.92,10.94144899]
[1755950240217,2.71,201.94,201.93,6.54608057]
[1755950241115,2.71,201.94,201.93,4.67749355]
[1755950241321,2.71,201.94,201.93,6.50845551]
[1755950241818,2.71,201.94,201.93,6.50831573]
[1755950244324,2.71,201.95,201.93,4.67735377]
[1755950244522,2.71,201.95,201.94,4.67735377]
[1755950244723,123.1,201.96,201.94,4.67735377]
[1755950245019,4.9534,201.95,201.92,2.78]
[1755950245222,4.9534,201.95,201.93,10.90194008]
[1755950245424,2.71,201.93,201.85,2.78]
[1755950245623,123.2,201.92,201.86,4.39550964]
[1755950245815,123.2,201.92,201.87,4.39550964]
[1755950246015,4.9546,201.9,201.88,4.39550964]
[1755950246219,123.2,201.92,201.85,2.78]
[1755950246419,123.2,201.92,201.86,4.3946473]
[1755950246615,4.9551,201.88,201.87,4.3946473]
[1755950251130,7.6651,201.88,201.87,4.3946473]
[1755950251324,4.955,201.88,201.87,4.39366999]
[1755950251628,7.665,201.88,201.87,4.39366999]
[1755950252017,2.71,201.9,201.87,4.39366999]
[1755950252216,2.71,201.9,201.84,2.78]
[1755950252430,2.71,201.91,201.85,4.39414102]
[1755950252623,123.2,201.92,201.86,4.39414102]
[1755950252829,2.71,201.89,201.83,2.78]
[1755950253129,2.71,201.88,201.84,7.17414102]
[1755950253331,2.71,201.88,201.85,4.39414102]
[1755950253629,2.68,201.91,201.87,2.8]
[1755950253828,2.68,201.9,201.87,2.8]
[1755950254024,4.9544,201.91,201.88,4.39470481]
[1755950254225,2.68,201.92,201.83,2.8]
[1755950254528,2.68,201.92,201.84,4.39476777]
[1755950254728,2.68,201.92,201.85,4.39476777]
[1755950254929,2.68,201.92,201.86,4.39476777]
[1755950255125,123.16,201.93,201.87,4.39476777]
[1755950255325,2.68,201.9,201.83,2.8]
[1755950255530,4.9549,201.89,201.84,4.3948881]
[1755950255732,4.9549,201.89,201.86,2.8]
[1755950255929,7.6349,201.89,201.87,4.3948881]
[1755950256128,7.6349,201.89,201.82,0.58680808]
[1755950256431,7.6349,201.89,201.83,7.1948881]
[1755950256627,7.6349,201.89,201.82,0.58680808]
[1755950256628,2.68,201.91,201.84,4.3948881]
[1755950256832,2.68,201.91,201.85,4.3948881]
[1755950257029,2.68,201.91,201.82,0.58680808]
[1755950257233,2.68,201.85,201.83,4.39526824]
[1755950257431,2.68,201.85,201.84,10.76375594]
[1755950257833,2.68,201.85,201.84,6.36962076]
[1755950258538,2.68,201.85,201.82,0.58680808]
[1755950258734,2.68,201.85,201.83,6.3665727]